bitfinex-derivatives/quotes_BTCF0:USTF0_20260314
["timestamp","ask_amount","ask_price","bid_price","bid_amount"]
[1773521599958,0.042324,70871.0,70860.0,0.00156]
[1773521603361,0.042327,70865.0,70854.0,0.00156]
[1773521603556,0.042327,70865.0,70848.0,0.01556206]
[1773521603557,0.042327,70865.0,70855.0,0.00156]
[1773521603762,0.042327,70865.0,70856.0,0.00156]
[1773521610965,0.042327,70865.0,70857.0,0.00156]
[1773521611866,0.042326,70868.0,70857.0,0.00156]
[1773521612068,0.0144839,70870.0,70857.0,0.00156]
[1773521612962,0.042326,70867.0,70857.0,0.00156]
[1773521613161,0.042327,70866.0,70857.0,0.00156]
[1773521617567,0.042327,70866.0,70858.0,0.00156]
[1773521617764,0.042327,70866.0,70859.0,0.00156]
[1773521617965,0.042327,70866.0,70853.0,0.042334]
[1773521618165,0.042327,70866.0,70854.0,0.00156]
[1773521625676,0.042325,70870.0,70857.0,0.042332]
[1773521627482,0.0144839,70874.0,70854.0,0.01712206]
[1773521627781,0.042323,70872.0,70859.0,0.04233]
[1773521628483,0.042323,70872.0,70860.0,0.00156]
[1773521628979,0.042323,70873.0,70860.0,0.00156]
[1773521629986,0.042323,70873.0,70860.0,0.04389]
[1773521630488,0.043323,70873.0,70860.0,0.04389]
[1773521641395,0.042323,70872.0,70860.0,0.04389]
[1773521649303,0.042322,70874.0,70861.0,0.042329]
[1773521651001,0.043322,70874.0,70861.0,0.042329]
[1773521651503,0.042322,70874.0,70861.0,0.042329]
[1773521651801,0.043322,70874.0,70861.0,0.042329]
[1773521652703,0.042322,70874.0,70861.0,0.042329]
[1773521668424,0.042323,70873.0,70861.0,0.042329]
[1773521681734,0.042323,70873.0,70854.0,0.16838783]
[1773521681735,0.01351557,70865.0,70844.0,0.042339]
[1773521681929,0.042332,70858.0,70844.0,0.05622326]
[1773521682130,0.2085077,70857.0,70843.0,0.04234]
[1773521682335,0.042332,70857.0,70843.0,0.04234]
[1773521682538,0.042332,70857.0,70843.0,0.05622426]
[1773521685138,0.042332,70857.0,70845.0,0.042339]
[1773521685440,0.042332,70857.0,70846.0,0.00156]
[1773521686332,0.042333,70856.0,70846.0,0.00156]
[1773521691343,0.042333,70855.0,70846.0,0.00156]
[1773521691538,0.042334,70854.0,70846.0,0.00156]
[1773521691744,0.042334,70854.0,70847.0,0.00156]
[1773521693345,0.042334,70854.0,70847.0,0.00116946]
[1773521696245,0.042333,70856.0,70847.0,0.00116946]
[1773521698243,0.22536035,70855.0,70847.0,0.00116946]
[1773521698444,0.042333,70856.0,70847.0,0.00116946]
[1773521698745,0.22536035,70855.0,70847.0,0.00116946]
[1773521698946,0.042333,70856.0,70847.0,0.00116946]
[1773521699146,0.22536035,70855.0,70847.0,0.00116946]
[1773521699349,0.042333,70856.0,70847.0,0.00116946]
[1773521699544,0.22536532,70855.0,70847.0,0.00116946]
[1773521699744,0.042333,70856.0,70847.0,0.00116946]
[1773521700046,0.22536532,70855.0,70847.0,0.00116946]
[1773521700347,0.042333,70856.0,70847.0,0.00116946]
[1773521700546,0.22536987,70855.0,70847.0,0.00116946]
[1773521700743,0.042333,70856.0,70847.0,0.00116946]
[1773521700951,0.26770287,70855.0,70847.0,0.00116946]
[1773521701145,0.042333,70855.0,70847.0,0.00116946]
[1773521702246,0.042332,70857.0,70847.0,0.00116946]
[1773521702552,0.22540016,70856.0,70847.0,0.00116946]
[1773521702746,0.22540016,70855.0,70847.0,0.00116946]
[1773521702942,0.042332,70857.0,70847.0,0.00116946]
[1773521703148,0.22540016,70856.0,70847.0,0.00116946]
[1773521703451,0.22540016,70855.0,70847.0,0.00116946]
[1773521703648,0.042332,70857.0,70847.0,0.00116946]
[1773521703943,0.22541862,70856.0,70847.0,0.00116946]
[1773521704149,0.22541862,70855.0,70847.0,0.00116946]
[1773521704454,0.042332,70857.0,70847.0,0.00116946]
[1773521704749,0.22544319,70856.0,70847.0,0.00116946]
[1773521704955,0.042332,70857.0,70847.0,0.00116946]
[1773521705151,0.22544319,70856.0,70847.0,0.00116946]
[1773521705349,0.22544319,70855.0,70847.0,0.00116946]
[1773521705550,0.042332,70857.0,70847.0,0.00116946]
[1773521705750,0.22547264,70856.0,70847.0,0.00116946]
[1773521705948,0.22547264,70855.0,70847.0,0.00116946]
[1773521706149,0.042332,70857.0,70847.0,0.00116946]
[1773521706446,0.22550785,70856.0,70847.0,0.00116946]
[1773521706646,0.22550785,70855.0,70847.0,0.00116946]
[1773521706846,0.042332,70857.0,70847.0,0.00116946]
[1773521707049,0.22550785,70856.0,70847.0,0.00116946]
[1773521707247,0.22550785,70855.0,70847.0,0.00116946]
[1773521707447,0.042332,70857.0,70847.0,0.00116946]
[1773521707644,0.22555018,70856.0,70847.0,0.00116946]
[1773521707843,0.22555018,70855.0,70847.0,0.00116946]
[1773521708044,0.042332,70857.0,70847.0,0.00116946]
[1773521708249,0.22555631,70856.0,70847.0,0.00116946]
[1773521708463,0.22555631,70855.0,70847.0,0.00116946]
[1773521708756,0.22555631,70854.0,70847.0,0.00116946]
[1773521708958,0.042332,70857.0,70847.0,0.00116946]
[1773521709256,0.22560194,70856.0,70847.0,0.00116946]
[1773521709442,0.22560194,70855.0,70847.0,0.00116946]
[1773521709646,0.22560194,70854.0,70847.0,0.00116946]
[1773521709863,0.042332,70857.0,70847.0,0.00116946]
[1773521710041,0.2251889,70856.0,70847.0,0.00116946]
[1773521710245,0.2251889,70855.0,70847.0,0.00116946]
[1773521710441,0.2251889,70854.0,70847.0,0.00116946]
[1773521710746,0.2251889,70853.0,70847.0,0.00116946]
[1773521710953,0.042332,70857.0,70847.0,0.00116946]
[1773521711147,0.22527938,70856.0,70847.0,0.00116946]
[1773521711349,0.22527938,70855.0,70847.0,0.00116946]
[1773521711550,0.22527938,70854.0,70847.0,0.00116946]
[1773521711755,0.22527938,70853.0,70847.0,0.00116946]
[1773521712059,0.22527938,70852.0,70847.0,0.00116946]
[1773521712358,0.042332,70857.0,70847.0,0.00116946]
[1773521712655,0.2254845,70856.0,70847.0,0.00116946]
[1773521712856,0.2254845,70855.0,70847.0,0.00116946]
[1773521713055,0.2254845,70854.0,70847.0,0.00116946]
[1773521713257,0.2254845,70853.0,70847.0,0.00116946]
[1773521713457,0.2254845,70852.0,70847.0,0.00116946]
[1773521713659,0.042332,70857.0,70847.0,0.00116946]
[1773521713956,0.22537196,70856.0,70847.0,0.00116946]
[1773521714156,0.22537196,70855.0,70847.0,0.00116946]
[1773521714357,0.22537196,70854.0,70847.0,0.00116946]
[1773521714558,0.22537196,70853.0,70847.0,0.00116946]
[1773521714760,0.22537196,70852.0,70847.0,0.00116946]
[1773521714957,0.22537196,70851.0,70847.0,0.00116946]
[1773521715157,0.22537196,70850.0,70847.0,0.00116946]
[1773521715357,0.042332,70857.0,70847.0,0.00116946]
[1773521715557,0.22537777,70856.0,70847.0,0.00116946]
[1773521715760,0.22537777,70855.0,70847.0,0.00116946]
[1773521715970,0.22537777,70854.0,70847.0,0.00116946]
[1773521716160,0.22537777,70853.0,70847.0,0.00116946]
[1773521716360,0.22537777,70852.0,70847.0,0.00116946]
[1773521716565,0.22537777,70851.0,70847.0,0.00116946]
[1773521716861,0.22537777,70850.0,70847.0,0.00116946]
[1773521717162,0.042332,70857.0,70847.0,0.00116946]
[1773521717464,0.22539226,70856.0,70847.0,0.00116946]
[1773521717762,0.01533278,70854.0,70832.0,0.01124]
[1773521717963,0.01533278,70852.0,70833.0,0.00156]
[1773521718167,0.24072504,70851.0,70833.0,0.00156]
[1773521718466,0.01533278,70851.0,70833.0,0.00156]
[1773521718960,0.01533278,70851.0,70841.0,0.042341]
[1773521719157,0.01533278,70851.0,70842.0,0.00156]
[1773521719360,0.22539508,70850.0,70841.0,0.042341]
[1773521719558,0.01533278,70851.0,70842.0,0.0439]
[1773521719768,0.22539508,70850.0,70843.0,0.00156]
[1773521719966,0.01533278,70851.0,70843.0,0.00156]
[1773521720165,0.22539527,70850.0,70843.0,0.00156]
[1773521720367,0.01533278,70851.0,70843.0,0.00156]
[1773521720565,0.22539094,70850.0,70843.0,0.00156]
[1773521720767,0.01533278,70851.0,70843.0,0.00156]
[1773521720964,0.22539094,70850.0,70842.0,0.04234]
[1773521721269,0.01533278,70851.0,70844.0,0.00156]
[1773521721572,0.22538811,70850.0,70844.0,0.00156]
[1773521721765,0.01533278,70851.0,70844.0,0.00156]
[1773521722070,0.22538811,70850.0,70844.0,0.00156]
[1773521722271,0.01533278,70851.0,70844.0,0.00156]
[1773521722463,0.2253665,70850.0,70844.0,0.00156]
[1773521722662,0.01533278,70851.0,70844.0,0.00156]
[1773521722863,0.2253665,70850.0,70844.0,0.00156]
[1773521723170,0.01533278,70851.0,70844.0,0.00156]
[1773521723362,0.22536436,70850.0,70844.0,0.00156]
[1773521723664,0.01533278,70851.0,70844.0,0.00156]
[1773521723867,0.22536436,70850.0,70844.0,0.00156]
[1773521724054,0.01533278,70851.0,70844.0,0.00156]
[1773521724252,0.2253629,70850.0,70844.0,0.00156]
[1773521724462,0.01533278,70851.0,70844.0,0.00156]
[1773521724664,0.2253629,70850.0,70844.0,0.00156]
[1773521724962,0.01533278,70851.0,70844.0,0.00156]
[1773521725163,0.2253629,70850.0,70844.0,0.00156]
[1773521725364,0.01533278,70851.0,70842.0,0.04234]
[1773521725556,0.22536146,70850.0,70843.0,0.00156]
[1773521725853,0.01533278,70851.0,70843.0,0.00156]
[1773521726053,0.22536146,70850.0,70843.0,0.00156]
[1773521726252,0.01533278,70851.0,70843.0,0.00156]
[1773521726452,0.22535994,70850.0,70843.0,0.00156]
[1773521726667,0.01533278,70851.0,70843.0,0.00156]
[1773521726968,0.22535994,70850.0,70843.0,0.00156]
[1773521727167,0.01533278,70851.0,70843.0,0.00156]
[1773521727367,0.22535869,70850.0,70843.0,0.00156]
[1773521727570,0.01533278,70851.0,70843.0,0.00156]
[1773521727868,0.22535869,70850.0,70843.0,0.00156]
[1773521728068,0.01533278,70851.0,70843.0,0.00156]
[1773521728268,0.22535777,70850.0,70843.0,0.00156]
[1773521728469,0.01533278,70851.0,70843.0,0.00156]
[1773521728669,0.22535758,70850.0,70843.0,0.00156]
[1773521728969,0.01533278,70851.0,70843.0,0.00156]
[1773521729168,0.22535758,70850.0,70843.0,0.00156]
[1773521729467,0.01533278,70851.0,70844.0,0.00156]
[1773521729667,0.22535668,70850.0,70844.0,0.00156]
[1773521729869,0.01533278,70851.0,70844.0,0.00156]
[1773521730068,0.22535668,70850.0,70844.0,0.00156]
[1773521730367,0.01533278,70851.0,70844.0,0.00156]
[1773521730670,0.22535611,70850.0,70844.0,0.00156]
[1773521730870,0.05835272,70855.0,70844.0,0.00156]
[1773521731070,0.22535588,70854.0,70844.0,0.00156]
[1773521731273,0.22535588,70853.0,70844.0,0.00156]
[1773521731470,0.22535588,70852.0,70844.0,0.00156]
[1773521731672,0.22535588,70851.0,70844.0,0.00156]
[1773521731862,0.22535588,70850.0,70844.0,0.00156]
[1773521732062,0.01601972,70854.0,70844.0,0.00156]
[1773521732265,0.22535526,70853.0,70844.0,0.00156]
[1773521732466,0.22535526,70852.0,70844.0,0.00156]
[1773521732766,0.01601972,70854.0,70844.0,0.00156]
[1773521732767,0.22535526,70851.0,70844.0,0.00156]
[1773521733067,0.22535526,70850.0,70844.0,0.00156]
[1773521733265,0.01601972,70854.0,70844.0,0.00156]
[1773521733469,0.22535535,70853.0,70844.0,0.00156]
[1773521733759,0.22535535,70852.0,70844.0,0.00156]
[1773521733960,0.22535535,70851.0,70844.0,0.00156]
[1773521734162,0.22535535,70850.0,70844.0,0.00156]
[1773521734362,0.01601972,70854.0,70844.0,0.00156]
[1773521734565,0.22535557,70853.0,70844.0,0.00156]
[1773521734766,0.22535557,70852.0,70844.0,0.00156]
[1773521735077,0.22535557,70851.0,70843.0,0.00156]
[1773521735373,0.22535557,70850.0,70841.0,0.042341]
[1773521735575,0.042335,70853.0,70842.0,0.00156]
[1773521735777,0.22535592,70852.0,70842.0,0.00156]
[1773521735975,0.22535592,70851.0,70842.0,0.00156]
[1773521736175,0.22535592,70850.0,70842.0,0.00156]
[1773521736370,0.042335,70853.0,70842.0,0.00156]
[1773521736571,0.2253564,70852.0,70842.0,0.00156]
[1773521736770,0.2253564,70851.0,70842.0,0.00156]
[1773521736966,0.2253564,70850.0,70842.0,0.00156]
[1773521737171,0.042335,70853.0,70842.0,0.00156]
[1773521737365,0.22535701,70852.0,70841.0,0.042341]
[1773521737562,0.22535701,70851.0,70842.0,0.00156]
[1773521737767,0.22535701,70850.0,70842.0,0.00156]
[1773521737970,0.042335,70853.0,70842.0,0.00156]
[1773521738175,0.22535701,70852.0,70842.0,0.00156]
[1773521738375,0.22535701,70851.0,70842.0,0.00156]
[1773521738577,0.22535701,70850.0,70842.0,0.00156]
[1773521738780,0.042335,70853.0,70842.0,0.00156]
[1773521738971,0.22535735,70852.0,70843.0,0.00156]
[1773521739171,0.22535735,70851.0,70843.0,0.00156]
[1773521739371,0.22535735,70850.0,70841.0,0.042341]
[1773521739572,0.042335,70853.0,70842.0,0.00156]
[1773521739871,0.22535791,70852.0,70842.0,0.00156]
[1773521740073,0.22535791,70851.0,70842.0,0.00156]
[1773521740275,0.22535791,70850.0,70842.0,0.00156]
[1773521740472,0.042335,70853.0,70843.0,0.00156]
[1773521740680,0.22535683,70852.0,70843.0,0.00156]
[1773521740881,0.22535683,70851.0,70843.0,0.00156]
[1773521741073,0.22535683,70850.0,70843.0,0.00156]
[1773521741273,0.042335,70853.0,70843.0,0.00156]
[1773521741580,0.22535757,70852.0,70843.0,0.00156]
[1773521741780,0.22535757,70851.0,70843.0,0.00156]
[1773521742079,0.22535757,70850.0,70844.0,0.00156]
[1773521742275,0.042335,70853.0,70844.0,0.00156]
[1773521742475,0.22535813,70852.0,70844.0,0.00156]
[1773521742676,0.22535813,70851.0,70844.0,0.00156]
[1773521742978,0.042335,70853.0,70841.0,0.042341]
[1773521742979,0.24137785,70850.0,70841.0,0.042341]
[1773521743174,0.01601972,70850.0,70842.0,0.00156]
[1773521743375,0.01601972,70850.0,70843.0,0.00156]
[1773521743576,0.22536169,70849.0,70843.0,0.00156]
[1773521743777,0.01601972,70850.0,70840.0,0.042342]
[1773521743972,0.22536179,70849.0,70841.0,0.00156]
[1773521744176,0.01601972,70850.0,70841.0,0.043901]
[1773521744378,0.22536204,70849.0,70841.0,0.042341]
[1773521744577,0.01601972,70850.0,70842.0,0.00156]
[1773521744777,0.22536204,70849.0,70842.0,0.00156]
[1773521744978,0.01601972,70850.0,70843.0,0.00156]
[1773521745283,0.24138176,70849.0,70844.0,0.45]
[1773521745486,0.01601972,70849.0,70844.0,7.2e-07]
[1773521745691,0.24138628,70848.0,70839.0,0.00156]
[1773521745989,0.22536656,70847.0,70839.0,0.00156]
[1773521748689,0.01891585,70857.0,70839.0,0.00156]
[1773521748889,0.00156,70856.0,70839.0,0.00156]
[1773521750676,0.042334,70855.0,70843.0,0.04234]
[1773521750877,0.042332,70857.0,70840.0,0.07359084]
[1773521751291,0.042332,70857.0,70844.0,0.042339]
[1773521751791,0.042332,70857.0,70845.0,0.00156]
[1773521756487,0.042332,70857.0,70845.0,0.043899]
[1773521760696,0.20569435,70856.0,70845.0,0.043899]
[1773521760895,0.20569435,70855.0,70845.0,0.043899]
[1773521761096,0.20569435,70854.0,70845.0,0.043899]
[1773521761296,0.20569435,70853.0,70845.0,0.043899]
[1773521761498,0.042332,70857.0,70845.0,0.043899]
[1773521761793,0.20569545,70856.0,70845.0,0.043899]
[1773521761997,0.20569545,70855.0,70845.0,0.043899]
[1773521762200,0.042332,70857.0,70845.0,0.043899]
[1773521762201,0.20569545,70854.0,70845.0,0.043899]
[1773521762392,0.20569545,70853.0,70845.0,0.043899]
[1773521762594,0.042332,70857.0,70845.0,0.043899]
[1773521762794,0.20569495,70856.0,70845.0,0.043899]
[1773521762995,0.20569495,70855.0,70845.0,0.043899]
[1773521763196,0.20569495,70854.0,70845.0,0.043899]
[1773521763396,0.042332,70857.0,70845.0,0.043899]
[1773521763599,0.20568872,70856.0,70845.0,0.043899]
[1773521763801,0.20568872,70855.0,70845.0,0.043899]
[1773521764002,0.20568872,70854.0,70845.0,0.043899]
[1773521764202,0.042332,70857.0,70845.0,0.043899]
[1773521764505,0.20568795,70856.0,70845.0,0.043899]
[1773521764709,0.07359084,70870.0,70845.0,0.043899]
[1773521764710,0.042326,70868.0,70847.0,0.02258511]
[1773521764910,0.042326,70868.0,70845.0,0.00156]
[1773521764911,0.042326,70868.0,70854.0,0.042333]
[1773521765103,0.042326,70868.0,70855.0,0.00156]
[1773521765714,0.053556,70867.0,70855.0,0.00156]
[1773521766604,0.042326,70867.0,70855.0,0.00156]
[1773521770317,0.042322,70874.0,70855.0,0.00156]
[1773521770523,0.01123,70878.0,70858.0,0.02258511]
[1773521770524,0.0225258,70877.0,70858.0,0.02258511]
[1773521770821,0.042322,70874.0,70858.0,0.02258511]
[1773521771516,0.042322,70874.0,70859.0,0.04233]
[1773521772822,0.042323,70873.0,70860.0,0.04233]
[1773521773119,0.042323,70873.0,70861.0,0.00156]
[1773521774121,0.042321,70875.0,70861.0,0.043889]
[1773521777731,0.042322,70873.0,70861.0,0.00156]
[1773521778035,0.0225258,70877.0,70861.0,0.00156]
[1773521778926,0.042324,70871.0,70861.0,0.00156]
[1773521782221,0.042323,70873.0,70861.0,0.00156]
[1773521784641,0.01123,70878.0,70861.0,0.00156]
[1773521784937,0.042321,70876.0,70863.0,0.042328]
[1773521791333,0.042321,70876.0,70864.0,0.042327]
[1773521792443,0.01123,70878.0,70866.0,0.042326]
[1773521792738,0.04232,70877.0,70865.0,0.042327]
[1773521792939,0.04232,70877.0,70863.0,0.042328]
[1773521794143,0.04232,70877.0,70865.0,0.042327]
[1773521794333,0.01123,70878.0,70861.0,0.02295956]
[1773521795141,0.042318,70880.0,70861.0,0.02295956]
[1773521797046,0.042318,70880.0,70866.0,0.042326]
[1773521797343,0.042318,70880.0,70867.0,0.00156]
[1773521798734,0.042318,70880.0,70867.0,0.043886]
[1773521800944,0.042319,70879.0,70867.0,0.043886]
[1773521805540,0.07352623,70880.0,70867.0,0.00156]
[1773521805736,0.07352623,70880.0,70862.0,0.042329]
[1773521805737,0.02207205,70878.0,70863.0,0.00156]
[1773521805934,0.042323,70873.0,70864.0,0.00156]
[1773521806645,0.042323,70873.0,70860.0,0.04233]
[1773521806845,0.042323,70873.0,70861.0,0.00156]
[1773521808743,0.042323,70873.0,70862.0,0.00156]
[1773521809341,0.042323,70873.0,70863.0,0.00156]
[1773521809849,0.042323,70873.0,70860.0,0.04233]
[1773521810045,0.042323,70873.0,70861.0,0.00156]
[1773521810348,0.042323,70873.0,70860.0,0.04233]
[1773521810648,0.042323,70873.0,70861.0,0.00156]
[1773521810847,0.042323,70873.0,70860.0,0.04233]
[1773521811033,0.042323,70873.0,70861.0,0.00156]
[1773521811542,0.042323,70873.0,70862.0,0.00156]
[1773521812044,0.02346682,70879.0,70863.0,0.00156]
[1773521812346,0.02346682,70879.0,70864.0,0.00156]
[1773521812547,0.02346682,70879.0,70865.0,0.00156]
[1773521812944,0.042324,70871.0,70865.0,0.00156]
[1773521813445,0.042324,70871.0,70858.0,0.042331]
[1773521813649,0.042324,70871.0,70859.0,0.00156]
[1773521814250,0.042324,70871.0,70860.0,0.00156]
[1773521824158,0.02190682,70873.0,70860.0,0.04389]
[1773521824159,0.06422982,70873.0,70860.0,0.04389]
[1773521846261,0.06422982,70873.0,70860.0,0.04233]
[1773521846262,0.01959468,70872.0,70860.0,0.04233]
[1773521846467,0.01959468,70872.0,70861.0,0.00156]
[1773521851674,0.042323,70873.0,70861.0,0.00156]
[1773521852482,0.042323,70873.0,70861.0,0.043889]
[1773521863188,0.02030009,70881.0,70862.0,0.01984447]
[1773521863189,0.00070541,70881.0,70862.0,0.01984447]
[1773521864085,0.00070541,70881.0,70861.0,0.00156]
[1773521864086,0.04302341,70881.0,70867.0,0.01984447]
[1773521864380,0.04302341,70881.0,70868.0,0.00156]
[1773521864581,0.042319,70880.0,70868.0,0.00156]
[1773521884199,0.042319,70880.0,70868.0,0.043885]
[1773521891708,0.00070541,70881.0,70869.0,0.042324]
[1773521896811,0.00070541,70881.0,70868.0,0.00156]
[1773521897011,0.042318,70880.0,70868.0,0.00156]
[1773521899012,0.042318,70880.0,70868.0,0.043885]
[1773521903011,0.042318,70880.0,70869.0,0.00156]
[1773521905412,0.042318,70880.0,70868.0,0.042325]
[1773521905413,0.01725055,70879.0,70868.0,0.043885]
[1773521907016,0.01725055,70879.0,70868.0,0.00156]
[1773521907217,0.05956955,70879.0,70868.0,0.00156]
[1773521907414,0.05956955,70879.0,70867.0,0.042326]
[1773521907613,0.05956955,70879.0,70868.0,0.00156]
[1773521907812,0.042319,70879.0,70868.0,0.00156]
[1773521912626,0.042321,70877.0,70868.0,0.00119438]
[1773521912829,0.01725055,70878.0,70865.0,0.00156]
[1773521913022,0.05957255,70874.0,70864.0,0.00156]
[1773521913223,0.042323,70873.0,70864.0,0.00156]
[1773521915942,0.01725055,70877.0,70864.0,0.00156]
[1773521916332,0.01725055,70877.0,70857.0,0.042332]
[1773521916530,0.042324,70871.0,70858.0,0.043891]
[1773521916730,0.042324,70871.0,70859.0,0.00156]
[1773521917030,0.00156,70878.0,70860.0,0.00156]
[1773521917031,0.05957355,70872.0,70860.0,0.00156]
[1773521917829,0.05957355,70872.0,70858.0,0.042331]
[1773521918029,0.05957355,70872.0,70859.0,0.00156]
[1773521918431,0.05957355,70872.0,70858.0,0.042331]
[1773521918432,0.05957355,70872.0,70860.0,0.00156]
[1773521918730,0.01725055,70871.0,70860.0,0.00156]
[1773521918925,0.01725055,70871.0,70858.0,0.042331]
[1773521919133,0.01725055,70871.0,70861.0,0.00156]
[1773521919633,0.01725055,70871.0,70860.0,0.00156]
[1773521921426,0.01725055,70871.0,70858.0,0.042331]
[1773521921622,0.01725055,70871.0,70860.0,0.00156]
[1773521922130,0.042327,70866.0,70849.0,0.1685165]
[1773521922336,0.09080622,70870.0,70850.0,0.00156]
[1773521922536,0.01725055,70869.0,70850.0,0.00156]
[1773521923137,0.042327,70865.0,70852.0,0.042335]
[1773521923738,0.042327,70865.0,70853.0,0.042334]
[1773521929942,0.042329,70863.0,70854.0,0.00156]
[1773521930141,0.042329,70863.0,70855.0,0.00156]
[1773521930332,0.01842877,70862.0,70854.0,0.00156]
[1773521930642,0.01842877,70862.0,70851.0,0.042335]
[1773521930643,0.042327,70865.0,70851.0,0.042335]
[1773521930832,0.042327,70865.0,70852.0,0.00156]
[1773521931542,0.01842877,70867.0,70852.0,0.00156]
[1773521931837,0.042327,70865.0,70852.0,0.00156]
[1773521932042,0.042327,70865.0,70852.0,0.043895]
[1773521941344,0.01842877,70867.0,70852.0,0.043895]
[1773521942047,0.042328,70864.0,70852.0,0.043895]
[1773521943040,0.01842877,70867.0,70852.0,0.00156]
[1773521943239,0.01842877,70867.0,70853.0,0.00156]
[1773521943442,0.042329,70862.0,70849.0,0.042336]
[1773521943742,0.07355567,70870.0,70850.0,0.00156]
[1773521943743,0.01834867,70869.0,70850.0,0.00156]
[1773521943943,0.01834867,70869.0,70851.0,0.00156]
[1773521944144,0.01834867,70869.0,70846.0,0.042338]
[1773521944343,0.01834867,70869.0,70850.0,0.00156]
[1773521944649,0.042331,70859.0,70850.0,0.00156]
[1773521945048,0.042331,70859.0,70846.0,0.042338]
[1773521945243,0.042331,70859.0,70847.0,0.00156]
[1773521945645,0.042331,70859.0,70848.0,0.00156]
[1773521946046,0.042331,70859.0,70846.0,0.042338]
[1773521946245,0.042331,70859.0,70847.0,0.00156]
[1773521946654,0.042331,70859.0,70848.0,0.00156]
[1773521947150,0.042331,70859.0,70846.0,0.042338]
[1773521947351,0.042331,70859.0,70847.0,0.00156]
[1773521947752,0.06068067,70858.0,70847.0,0.00156]
[1773521948048,0.06068067,70858.0,70846.0,0.042338]
[1773521948243,0.06068067,70858.0,70847.0,0.00156]
[1773521948951,0.06068067,70858.0,70846.0,0.042338]
[1773521949251,0.06068067,70858.0,70847.0,0.00156]
[1773521949447,0.06068067,70858.0,70846.0,0.042338]
[1773521949650,0.06068067,70858.0,70847.0,0.00156]
[1773521949951,0.06068067,70858.0,70846.0,0.042338]
[1773521950151,0.06068067,70858.0,70847.0,0.00156]
[1773521950543,0.01834867,70858.0,70847.0,0.00156]
[1773521951241,0.01834867,70858.0,70846.0,0.00156]
[1773521951755,0.01834867,70858.0,70836.0,0.01739202]
[1773521952054,0.042332,70857.0,70844.0,0.042339]
[1773521952352,0.042332,70857.0,70845.0,0.00156]
[1773521955550,0.06068067,70857.0,70845.0,0.00156]
[1773521956352,0.06068067,70857.0,70844.0,0.042339]
[1773521956552,0.042339,70845.0,70832.0,0.01124]
[1773521956947,0.042339,70846.0,70833.0,0.042346]
[1773521957449,0.042339,70846.0,70834.0,0.00156]
[1773521960255,0.01124,70857.0,70834.0,0.00156]
[1773521960256,0.01124,70857.0,70835.0,0.01739202]
[1773521960454,0.00156,70856.0,70841.0,0.01739202]
[1773521960653,0.00156,70856.0,70841.0,0.01895202]
[1773521961359,0.042335,70852.0,70841.0,0.01895202]
[1773521961759,0.042335,70852.0,70841.0,0.00156]
[1773521968657,0.042336,70851.0,70841.0,0.00156]
[1773521970459,0.042338,70848.0,70838.0,0.00156]
[1773521970763,0.05990931,70848.0,70838.0,0.00134752]
[1773521981772,0.042339,70845.0,70833.0,0.00156]
[1773521983470,0.05991031,70845.0,70833.0,0.00156]
[1773521983776,0.01757131,70844.0,70833.0,0.00156]
[1773521983976,0.042339,70845.0,70833.0,0.00156]
[1773521984177,0.04234,70843.0,70833.0,0.00156]
[1773521987879,0.042341,70842.0,70833.0,0.00156]
[1773522000898,0.01591993,70841.0,70832.0,0.01124]
[1773522001105,0.01591993,70841.0,70828.0,0.16846969]
[1773522001303,0.01591993,70832.0,70810.0,0.00014785]
[1773522001491,0.042336,70850.0,70802.0,0.31556096]
[1773522001492,0.01591993,70815.0,70802.0,0.043924]
[1773522001800,0.01591993,70815.0,70803.0,0.17006287]
[1773522002004,0.042356,70817.0,70803.0,0.17006287]
[1773522002500,0.22767865,70816.0,70803.0,0.12769887]
[1773522002701,0.24345073,70815.0,70803.0,0.12769887]
[1773522003006,0.042364,70804.0,70793.0,0.00156]
[1773522003196,0.05828193,70807.0,70793.0,0.12925887]
[1773522003504,0.01591993,70806.0,70794.0,0.00156]
[1773522004595,0.01591993,70803.0,70783.0,0.00156]
[1773522004800,0.01591993,70798.0,70775.0,0.05817446]
[1773522004996,0.01591993,70796.0,70780.0,0.00156]
[1773522005502,0.00014785,70802.0,70782.0,0.01579346]
[1773522005701,0.00014785,70802.0,70790.0,0.07360128]
[1773522006092,0.00156,70809.0,70794.0,0.01579346]
[1773522006292,0.01591993,70815.0,70794.0,0.01579346]
[1773522006496,0.22704712,70814.0,70794.0,0.01579346]
[1773522006701,0.00156,70813.0,70798.0,0.042367]
[1773522006907,0.00156,70813.0,70798.0,0.043927]
[1773522006908,0.042359,70813.0,70798.0,0.043927]
[1773522007094,0.042359,70812.0,70798.0,0.043927]
[1773522007601,0.01124,70825.0,70798.0,0.043927]
[1773522007602,0.01591993,70824.0,70802.0,0.01579346]
[1773522007808,0.042357,70816.0,70803.0,0.01579346]
[1773522008905,0.01591993,70819.0,70800.0,0.042366]
[1773522009498,0.07360128,70810.0,70786.0,0.01579346]
[1773522009697,0.042365,70802.0,70787.0,0.043934]
[1773522009894,0.042365,70802.0,70788.0,0.00156]
[1773522010900,0.042364,70805.0,70789.0,0.042372]
[1773522011406,0.042364,70804.0,70789.0,0.042372]
[1773522012710,0.042365,70803.0,70789.0,0.042372]
[1773522014002,0.00156,70809.0,70788.0,0.01281]
[1773522014003,0.01591993,70808.0,70788.0,0.01281]
[1773522014512,0.042362,70806.0,70789.0,0.042372]
[1773522014709,0.042363,70805.0,70791.0,0.042371]
[1773522015211,0.01124,70811.0,70791.0,0.042371]
[1773522015212,0.00156,70804.0,70792.0,0.0161426]
[1773522017103,0.00156,70804.0,70793.0,0.01618063]
[1773522017309,0.042363,70806.0,70793.0,0.01618063]
[1773522017511,0.042363,70805.0,70793.0,0.01618063]
[1773522019212,0.01124,70811.0,70793.0,0.01618063]
[1773522019419,0.0536,70811.0,70797.0,0.042367]
[1773522019623,0.05516,70811.0,70797.0,0.05999277]
[1773522019912,0.0536,70811.0,70798.0,0.01601519]
[1773522020122,0.01124,70811.0,70805.0,0.01601519]
[1773522020720,0.01124,70811.0,70802.0,0.042365]
[1773522020721,0.01124,70811.0,70800.0,0.01601519]
[1773522020926,0.01124,70811.0,70798.0,0.01579346]